[Event "*** Titled Tuesday Blitz"]
[Site "Chess.com"]
[Date "2021.03.09"]
[Round "8"]
[White "rynos0411"]
[Black "Iskusnyh"]
[Result "0-1"]
[WhiteElo "2454"]
[BlackElo "2605"]
[TimeControl "180+1"]
[EndTime "11:32:08 PST"]
[Termination "Iskusnyh won by resignation"]

1. e4 {[%clk 0:02:59.8]} 1... e6 {[%clk 0:02:59.7]} 2. d4 {[%clk 0:02:56]} 2...
d5 {[%clk 0:03:00.1]} 3. exd5 {[%clk 0:02:56.9]} 3... exd5 {[%clk 0:03:00.1]} 4.
Bd3 {[%clk 0:02:52.2]} 4... c5 {[%clk 0:02:59.1]} 5. dxc5 {[%clk 0:02:51.7]}
5... Bxc5 {[%clk 0:02:58.4]} 6. Nf3 {[%clk 0:02:52.1]} 6... Nf6 {[%clk
0:02:58.4]} 7. O-O {[%clk 0:02:52.2]} 7... O-O {[%clk 0:02:58.9]} 8. Nc3 {[%clk
0:02:51.5]} 8... Nc6 {[%clk 0:02:55.3]} 9. Bg5 {[%clk 0:02:51]} 9... Be6 {[%clk
0:02:50.8]} 10. h3 {[%clk 0:02:48]} 10... h6 {[%clk 0:02:48.9]} 11. Bh4 {[%clk
0:02:46.3]} 11... a6 {[%clk 0:02:47.3]} 12. Ne2 {[%clk 0:02:43.3]} 12... g5
{[%clk 0:02:42.8]} 13. Bg3 {[%clk 0:02:42.9]} 13... Ne4 {[%clk 0:02:42.8]} 14.
c3 {[%clk 0:02:12.7]} 14... f5 {[%clk 0:02:37]} 15. Nfd4 {[%clk 0:02:00.9]}
15... Bd7 {[%clk 0:02:14.3]} 16. Nxc6 {[%clk 0:01:55.3]} 16... bxc6 {[%clk
0:02:11]} 17. Be5 {[%clk 0:01:55.4]} 17... Qe8 {[%clk 0:01:33.6]} 18. Bd4 {[%clk
0:01:54.5]} 18... Bd6 {[%clk 0:01:33.5]} 19. c4 {[%clk 0:01:10.3]} 19... c5
{[%clk 0:01:26.7]} 20. Bc3 {[%clk 0:00:46.3]} 20... d4 {[%clk 0:01:24.2]} 21.
Bxe4 {[%clk 0:00:38.2]} 21... Qxe4 {[%clk 0:01:15.6]} 22. Nxd4 {[%clk
0:00:37.2]} 22... cxd4 {[%clk 0:01:10.7]} 23. Re1 {[%clk 0:00:37.1]} 23... Qh4
{[%clk 0:00:37.5]} 24. Bxd4 {[%clk 0:00:20.9]} 24... Rad8 {[%clk 0:00:34.6]} 25.
Bg7 {[%clk 0:00:18.7]} 25... Bc6 {[%clk 0:00:23.8]} 26. Bxf8 {[%clk 0:00:05.3]}
26... Bh2+ {[%clk 0:00:23.3]} 27. Kxh2 {[%clk 0:00:05.9]} 27... Rxd1 {[%clk
0:00:22.8]} 28. Raxd1 {[%clk 0:00:06.8]} 28... Kxf8 {[%clk 0:00:23.1]} 29. Rd8+
{[%clk 0:00:06.8]} 29... Kf7 {[%clk 0:00:21.7]} 30. g3 {[%clk 0:00:07.3]} 30...
Qxc4 {[%clk 0:00:20]} 31. Rd6 {[%clk 0:00:05.7]} 31... Qc5 {[%clk 0:00:19.6]}
32. Rd2 {[%clk 0:00:04.8]} 32... h5 {[%clk 0:00:19.1]} 33. b3 {[%clk 0:00:03.6]}
33... h4 {[%clk 0:00:18.8]} 34. Red1 {[%clk 0:00:02.6]} 34... hxg3+ {[%clk
0:00:18.2]} 35. fxg3 {[%clk 0:00:03.1]} 35... Qc3 {[%clk 0:00:17.9]} 36. Rf2
{[%clk 0:00:03.1]} 36... Be4 {[%clk 0:00:14.9]} 37. g4 {[%clk 0:00:02.4]} 37...
Qc7+ {[%clk 0:00:14.3]} 38. Kg1 {[%clk 0:00:02.9]} 38... Qg3+ {[%clk 0:00:14.5]}
39. Kf1 {[%clk 0:00:03.2]} 39... Qxh3+ {[%clk 0:00:14.6]} 40. Ke1 {[%clk
0:00:03.7]} 40... Qe3+ {[%clk 0:00:14.5]} 41. Re2 {[%clk 0:00:03.5]} 41... Qg1+
{[%clk 0:00:14.1]} 42. Kd2 {[%clk 0:00:03.6]} 42... Qd4+ {[%clk 0:00:14.1]} 43.
Ke1 {[%clk 0:00:03.7]} 43... Qc3+ {[%clk 0:00:14.2]} 44. Kf2 {[%clk 0:00:03.8]}
44... Kf6 {[%clk 0:00:09.8]} 45. gxf5 {[%clk 0:00:03.7]} 45... Kxf5 {[%clk
0:00:09.1]} 46. Rf1 {[%clk 0:00:04]} 46... g4 {[%clk 0:00:08.2]} 47. Kg1+ {[%clk
0:00:04.4]} 47... Bf3 {[%clk 0:00:08.4]} 48. Rfe1 {[%clk 0:00:05.3]} 48... Qc5+
{[%clk 0:00:08]} 49. Re3 {[%clk 0:00:04.7]} 49... Kf4 {[%clk 0:00:07.8]} 50. Kf2
{[%clk 0:00:04.7]} 50... g3+ {[%clk 0:00:08.2]} 0-1

[Event "*** Titled Tuesday Blitz"]
[Site "Chess.com"]
[Date "2021.03.09"]
[Round "8"]
[White "ukchessbomber"]
[Black "Kaslask"]
[Result "1-0"]
[WhiteElo "2540"]
[BlackElo "2354"]
[TimeControl "180+1"]
[EndTime "11:32:08 PST"]
[Termination "ukchessbomber won by resignation"]

1. e3 {[%clk 0:03:00.3]} 1... g6 {[%clk 0:02:57.7]} 2. c4 {[%clk 0:03:00.6]}
2... Bg7 {[%clk 0:02:57]} 3. d4 {[%clk 0:03:00.7]} 3... Nf6 {[%clk 0:02:56.9]}
4. h4 {[%clk 0:03:01.2]} 4... h6 {[%clk 0:02:49.6]} 5. Nc3 {[%clk 0:03:01.1]}
5... c5 {[%clk 0:02:48.7]} 6. d5 {[%clk 0:03:01.3]} 6... d6 {[%clk 0:02:46.3]}
7. e4 {[%clk 0:03:01.6]} 7... b5 {[%clk 0:02:40.7]} 8. cxb5 {[%clk 0:03:00.5]}
8... a6 {[%clk 0:02:40.7]} 9. bxa6 {[%clk 0:02:58.5]} 9... Qa5 {[%clk
0:02:38.2]} 10. Bd2 {[%clk 0:02:59]} 10... Bxa6 {[%clk 0:02:38.1]} 11. Nf3
{[%clk 0:02:44.3]} 11... Bxf1 {[%clk 0:02:36.2]} 12. Kxf1 {[%clk 0:02:45.1]}
12... Qa6+ {[%clk 0:02:34.3]} 13. Qe2 {[%clk 0:02:43.5]} 13... Nbd7 {[%clk
0:02:33]} 14. a4 {[%clk 0:02:41.5]} 14... O-O {[%clk 0:02:31.9]} 15. Qxa6 {[%clk
0:02:33.3]} 15... Rxa6 {[%clk 0:02:30.9]} 16. Ke2 {[%clk 0:02:34.2]} 16... Rb8
{[%clk 0:02:28.6]} 17. Rhb1 {[%clk 0:02:34.1]} 17... c4 {[%clk 0:02:26.1]} 18.
Be3 {[%clk 0:02:22.8]} 18... Ng4 {[%clk 0:02:20.8]} 19. Nd2 {[%clk 0:01:44.3]}
19... Nxe3 {[%clk 0:02:16.4]} 20. Kxe3 {[%clk 0:01:43.4]} 20... Rb4 {[%clk
0:02:03.6]} 21. a5 {[%clk 0:01:04.7]} 21... Nc5 {[%clk 0:02:02.1]} 22. Ra3
{[%clk 0:00:58.1]} 22... Nd3 {[%clk 0:01:55.9]} 23. Nxc4 {[%clk 0:00:42.2]}
23... Rxc4 {[%clk 0:01:40]} 24. Kxd3 {[%clk 0:00:41.8]} 24... Rd4+ {[%clk
0:01:39.7]} 25. Ke2 {[%clk 0:00:39.6]} 25... Rb4 {[%clk 0:01:38.7]} 26. Kd3
{[%clk 0:00:25.4]} 26... Rd4+ {[%clk 0:01:32.9]} 27. Kc2 {[%clk 0:00:25.5]}
27... Rb4 {[%clk 0:01:20]} 28. f3 {[%clk 0:00:23.9]} 28... f5 {[%clk 0:01:14.3]}
29. Rba1 {[%clk 0:00:20.1]} 29... Bxc3 {[%clk 0:01:06.1]} 30. Kxc3 {[%clk
0:00:19.6]} 30... Rb5 {[%clk 0:01:01.5]} 31. b4 {[%clk 0:00:18.6]} 31... fxe4
{[%clk 0:00:56.3]} 32. fxe4 {[%clk 0:00:19.5]} 32... Kf8 {[%clk 0:00:56]} 33.
Kc4 {[%clk 0:00:18.7]} 33... Rb8 {[%clk 0:00:55.7]} 34. b5 {[%clk 0:00:19.3]}
34... Raa8 {[%clk 0:00:53.8]} 35. b6 {[%clk 0:00:16.8]} 35... Ke8 {[%clk
0:00:51.4]} 36. Kd4 {[%clk 0:00:15.5]} 36... Kd7 {[%clk 0:00:50.7]} 37. Rb3
{[%clk 0:00:15.5]} 37... Ra6 {[%clk 0:00:50.1]} 38. e5 {[%clk 0:00:12.9]} 38...
dxe5+ {[%clk 0:00:45.8]} 39. Kxe5 {[%clk 0:00:13.8]} 39... Rf8 {[%clk
0:00:45.4]} 40. b7 {[%clk 0:00:12.7]} 40... Rb8 {[%clk 0:00:45.2]} 41. Ra4
{[%clk 0:00:11]} 41... Kc7 {[%clk 0:00:44.9]} 42. Rc4+ {[%clk 0:00:10.9]} 42...
Kd7 {[%clk 0:00:45.1]} 43. Rc5 {[%clk 0:00:11.5]} 43... Ra7 {[%clk 0:00:43.4]}
44. Rcb5 {[%clk 0:00:11.3]} 44... Ra6 {[%clk 0:00:43.5]} 45. g4 {[%clk
0:00:10.5]} 45... Kc7 {[%clk 0:00:41.2]} 46. g5 {[%clk 0:00:10]} 46... hxg5
{[%clk 0:00:40.3]} 47. hxg5 {[%clk 0:00:10.9]} 47... Kd7 {[%clk 0:00:38.8]} 48.
R3b4 {[%clk 0:00:10.9]} 48... Kc7 {[%clk 0:00:38.6]} 49. Rb1 {[%clk 0:00:11]}
49... Kd7 {[%clk 0:00:38.6]} 50. Rh1 {[%clk 0:00:11.2]} 50... Ra7 {[%clk
0:00:37.2]} 51. Rh6 {[%clk 0:00:10.5]} 51... Rbxb7 {[%clk 0:00:35.4]} 52. Rxb7+
{[%clk 0:00:11.4]} 52... Rxb7 {[%clk 0:00:35.5]} 53. Rxg6 {[%clk 0:00:12.1]}
53... Rb2 {[%clk 0:00:34.3]} 54. Ra6 {[%clk 0:00:10.8]} 54... Re2+ {[%clk
0:00:33.6]} 55. Kd4 {[%clk 0:00:11.3]} 55... Rg2 {[%clk 0:00:33.4]} 56. g6
{[%clk 0:00:11]} 56... Kc7 {[%clk 0:00:31.7]} 57. Re6 {[%clk 0:00:10.5]} 57...
Kd7 {[%clk 0:00:31]} 58. a6 {[%clk 0:00:11.1]} 58... Ra2 {[%clk 0:00:30.3]} 59.
g7 {[%clk 0:00:10.7]} 59... Rg2 {[%clk 0:00:28.3]} 60. a7 {[%clk 0:00:11]} 1-0

[Event "*** Titled Tuesday Blitz"]
[Site "Chess.com"]
[Date "2021.03.09"]
[Round "8"]
[White "tylityli"]
[Black "TooOldTooSlow70"]
[Result "1-0"]
[WhiteElo "2255"]
[BlackElo "2459"]
[TimeControl "180+1"]
[EndTime "11:32:08 PST"]
[Termination "tylityli won by checkmate"]

1. d4 {[%clk 0:03:00.9]} 1... e6 {[%clk 0:02:55.3]} 2. c4 {[%clk 0:02:58.9]}
2... Ke7 {[%clk 0:02:54.4]} 3. Nc3 {[%clk 0:02:58.3]} 3... g6 {[%clk 0:02:51.3]}
4. e4 {[%clk 0:02:58.1]} 4... h6 {[%clk 0:02:50.8]} 5. f4 {[%clk 0:02:57.8]}
5... Kf6 {[%clk 0:02:50.7]} 6. Nf3 {[%clk 0:02:55.9]} 6... d6 {[%clk 0:02:50.4]}
7. e5+ {[%clk 0:02:52.8]} 7... Kg7 {[%clk 0:02:48.9]} 8. Bd3 {[%clk 0:02:51.9]}
8... Nc6 {[%clk 0:02:47.8]} 9. Be3 {[%clk 0:02:50.9]} 9... Nge7 {[%clk
0:02:44.7]} 10. O-O {[%clk 0:02:49.5]} 10... Nf5 {[%clk 0:02:44.4]} 11. Qe2
{[%clk 0:02:47.2]} 11... Be7 {[%clk 0:02:43.5]} 12. Rad1 {[%clk 0:02:42.8]}
12... Nb4 {[%clk 0:02:21.8]} 13. Bb1 {[%clk 0:02:39.2]} 13... d5 {[%clk
0:02:20.4]} 14. a3 {[%clk 0:02:34.8]} 14... Nc6 {[%clk 0:02:18.6]} 15. g4 {[%clk
0:02:23.7]} 15... Nxe3 {[%clk 0:02:17.9]} 16. Qxe3 {[%clk 0:02:24.6]} 16... dxc4
{[%clk 0:02:17]} 17. f5 {[%clk 0:02:10.7]} 17... exf5 {[%clk 0:02:01.4]} 18.
gxf5 {[%clk 0:02:08.5]} 18... Bxf5 {[%clk 0:02:01.5]} 19. d5 {[%clk 0:01:56.3]}
19... Nb8 {[%clk 0:01:54]} 20. Bxf5 {[%clk 0:01:50.2]} 20... gxf5 {[%clk
0:01:53.4]} 21. Nd4 {[%clk 0:01:51.1]} 21... Bg5 {[%clk 0:01:52.3]} 22. Nxf5+
{[%clk 0:01:49.6]} 22... Kf8 {[%clk 0:01:49]} 23. Qc5+ {[%clk 0:01:47]} 23...
Be7 {[%clk 0:01:48.1]} 24. d6 {[%clk 0:01:30.4]} 24... cxd6 {[%clk 0:01:44.5]}
25. exd6 {[%clk 0:01:28.5]} 25... Bf6 {[%clk 0:01:38.2]} 26. d7+ {[%clk
0:01:24]} 26... Kg8 {[%clk 0:01:38]} 27. Qxc4 {[%clk 0:00:50.1]} 27... Nxd7
{[%clk 0:01:26.7]} 28. Ne4 {[%clk 0:00:31.6]} 28... Qb6+ {[%clk 0:00:56.6]} 29.
Kh1 {[%clk 0:00:30.4]} 29... Ne5 {[%clk 0:00:57.5]} 30. Qd5 {[%clk 0:00:20]}
30... Kh7 {[%clk 0:00:55.8]} 31. Nfd6 {[%clk 0:00:18.3]} 31... Bg7 {[%clk
0:00:53.6]} 32. Nxf7 {[%clk 0:00:15.9]} 32... Rae8 {[%clk 0:00:39.9]} 33. Ned6
{[%clk 0:00:12.6]} 33... Re6 {[%clk 0:00:35.3]} 34. Qxe6 {[%clk 0:00:10.6]}
34... Qc6+ {[%clk 0:00:34.5]} 35. Qd5 {[%clk 0:00:08.7]} 35... Qc2 {[%clk
0:00:33.6]} 36. Nxh8 {[%clk 0:00:07.1]} 36... Bxh8 {[%clk 0:00:20.7]} 37. Qe4+
{[%clk 0:00:07.2]} 37... Qxe4+ {[%clk 0:00:20.2]} 38. Nxe4 {[%clk 0:00:08.1]}
38... Kg6 {[%clk 0:00:20.3]} 39. Rd8 {[%clk 0:00:07.5]} 39... Bg7 {[%clk
0:00:20.1]} 40. Rb8 {[%clk 0:00:07.1]} 40... Ng4 {[%clk 0:00:18.8]} 41. Rxb7
{[%clk 0:00:06.6]} 41... Be5 {[%clk 0:00:19]} 42. Rg1 {[%clk 0:00:06]} 42... Kf5
{[%clk 0:00:19]} 43. Rxg4 {[%clk 0:00:05.7]} 43... Kxg4 {[%clk 0:00:19.9]} 44.
Nc5 {[%clk 0:00:06]} 44... h5 {[%clk 0:00:18.8]} 45. Nd3 {[%clk 0:00:06.1]}
45... Bd4 {[%clk 0:00:17.5]} 46. Rb4 {[%clk 0:00:06]} 46... h4 {[%clk
0:00:16.9]} 47. Rxd4+ {[%clk 0:00:05.6]} 47... Kh3 {[%clk 0:00:17.8]} 48. Kg1
{[%clk 0:00:05.8]} 48... a5 {[%clk 0:00:16.9]} 49. Rd7 {[%clk 0:00:06.3]} 49...
a4 {[%clk 0:00:17.2]} 50. Nc5 {[%clk 0:00:07.2]} 50... Kg4 {[%clk 0:00:17.2]}
51. Nxa4 {[%clk 0:00:08.1]} 51... Kh3 {[%clk 0:00:18.1]} 52. b4 {[%clk
0:00:08.7]} 52... Kg4 {[%clk 0:00:18.9]} 53. b5 {[%clk 0:00:09.6]} 53... Kf3
{[%clk 0:00:19.5]} 54. b6 {[%clk 0:00:10.5]} 54... Kg4 {[%clk 0:00:20.2]} 55. b7
{[%clk 0:00:11.4]} 55... Kh3 {[%clk 0:00:20.6]} 56. b8=Q {[%clk 0:00:12.3]}
56... Kg4 {[%clk 0:00:21.2]} 57. Qb4+ {[%clk 0:00:12.7]} 57... Kh3 {[%clk
0:00:22.1]} 58. Rd3# {[%clk 0:00:12.7]} 1-0

[Event "*** Titled Tuesday Blitz"]
[Site "Chess.com"]
[Date "2021.03.09"]
[Round "8"]
[White "queen_iryna"]
[Black "Vandros57"]
[Result "0-1"]
[WhiteElo "2335"]
[BlackElo "2225"]
[TimeControl "180+1"]
[EndTime "11:32:09 PST"]
[Termination "Vandros57 won on time"]

1. e4 {[%clk 0:03:00.9]} 1... c5 {[%clk 0:02:58.7]} 2. Nf3 {[%clk 0:03:00.6]}
2... Nc6 {[%clk 0:02:57.4]} 3. Bb5 {[%clk 0:03:00.5]} 3... d6 {[%clk 0:02:55.9]}
4. Bxc6+ {[%clk 0:03:00.3]} 4... bxc6 {[%clk 0:02:54.8]} 5. O-O {[%clk
0:03:01.2]} 5... e5 {[%clk 0:02:53]} 6. c3 {[%clk 0:03:00.8]} 6... Be7 {[%clk
0:02:52]} 7. d4 {[%clk 0:02:48.3]} 7... cxd4 {[%clk 0:02:48.4]} 8. cxd4 {[%clk
0:02:49.2]} 8... exd4 {[%clk 0:02:47.5]} 9. Nxd4 {[%clk 0:02:48.6]} 9... Qc7
{[%clk 0:02:41.5]} 10. Nc3 {[%clk 0:02:38.3]} 10... Nf6 {[%clk 0:02:38.3]} 11.
Bf4 {[%clk 0:02:25.9]} 11... O-O {[%clk 0:02:36.1]} 12. Rc1 {[%clk 0:02:26]}
12... Qb6 {[%clk 0:02:22.2]} 13. Na4 {[%clk 0:02:18.2]} 13... Qa6 {[%clk
0:01:57.1]} 14. Nxc6 {[%clk 0:02:02.7]} 14... Re8 {[%clk 0:01:44.7]} 15. Nxe7+
{[%clk 0:01:34.3]} 15... Rxe7 {[%clk 0:01:43.3]} 16. Qxd6 {[%clk 0:01:26.9]}
16... Qxd6 {[%clk 0:01:34.2]} 17. Bxd6 {[%clk 0:01:27.8]} 17... Rxe4 {[%clk
0:01:32.4]} 18. f3 {[%clk 0:01:02]} 18... Rxa4 {[%clk 0:01:29.6]} 19. Rfe1
{[%clk 0:00:41.1]} 19... Be6 {[%clk 0:01:27.5]} 20. a3 {[%clk 0:00:39.1]} 20...
h5 {[%clk 0:01:21.6]} 21. Be5 {[%clk 0:00:38.7]} 21... Nd5 {[%clk 0:01:19.1]}
22. Bc3 {[%clk 0:00:30.9]} 22... Rc4 {[%clk 0:01:16.7]} 23. Bd2 {[%clk
0:00:24.8]} 23... Rac8 {[%clk 0:01:15]} 24. Kf2 {[%clk 0:00:24]} 24... Rxc1
{[%clk 0:01:13.8]} 25. Rxc1 {[%clk 0:00:24.9]} 25... Rxc1 {[%clk 0:01:13.4]} 26.
Bxc1 {[%clk 0:00:25.8]} 26... a6 {[%clk 0:01:13.4]} 27. g3 {[%clk 0:00:23.6]}
27... Kf8 {[%clk 0:01:13.5]} 28. Bd2 {[%clk 0:00:21.4]} 28... Ke7 {[%clk
0:01:13.2]} 29. Kg2 {[%clk 0:00:21.5]} 29... Kd6 {[%clk 0:01:12.9]} 30. h3
{[%clk 0:00:21.6]} 30... f6 {[%clk 0:01:11.1]} 31. g4 {[%clk 0:00:21.7]} 31...
hxg4 {[%clk 0:01:09.4]} 32. hxg4 {[%clk 0:00:22.3]} 32... Kc5 {[%clk 0:01:08.8]}
33. Kg3 {[%clk 0:00:20.6]} 33... Kc4 {[%clk 0:01:08.2]} 34. f4 {[%clk
0:00:19.7]} 34... Kb3 {[%clk 0:01:07.6]} 35. g5 {[%clk 0:00:16.9]} 35... Kxb2
{[%clk 0:01:02.5]} 36. a4 {[%clk 0:00:15.4]} 36... Kb3 {[%clk 0:00:58.4]} 37.
gxf6 {[%clk 0:00:14.9]} 37... gxf6 {[%clk 0:00:57.2]} 38. a5 {[%clk 0:00:14.7]}
38... Ka4 {[%clk 0:00:54.3]} 39. Kh4 {[%clk 0:00:13.8]} 39... Bf5 {[%clk
0:00:48.9]} 40. Kh5 {[%clk 0:00:12.1]} 40... Bd3 {[%clk 0:00:48.2]} 41. Kh6
{[%clk 0:00:10.4]} 41... Nb4 {[%clk 0:00:46.6]} 42. Kg7 {[%clk 0:00:09.7]} 42...
f5 {[%clk 0:00:45.8]} 43. Kf6 {[%clk 0:00:09.7]} 43... Kxa5 {[%clk 0:00:45.2]}
44. Ke5 {[%clk 0:00:10]} 44... Kb5 {[%clk 0:00:44.7]} 45. Kd4 {[%clk 0:00:10.3]}
45... Be4 {[%clk 0:00:41.3]} 46. Bc1 {[%clk 0:00:07.5]} 46... a5 {[%clk
0:00:40.9]} 47. Kc3 {[%clk 0:00:07.8]} 47... a4 {[%clk 0:00:39.6]} 48. Kb2
{[%clk 0:00:04.5]} 48... Nd5 {[%clk 0:00:36]} 49. Ka3 {[%clk 0:00:02.9]} 49...
Bc2 {[%clk 0:00:34.8]} 50. Bd2 {[%clk 0:00:02.8]} 50... Kc4 {[%clk 0:00:33.6]}
51. Kb2 {[%clk 0:00:02.2]} 51... Bb3 {[%clk 0:00:31.9]} 52. Ka3 {[%clk
0:00:02.4]} 52... Kd4 {[%clk 0:00:31]} 53. Kb2 {[%clk 0:00:02.5]} 53... Ke4
{[%clk 0:00:30.5]} 54. Ka3 {[%clk 0:00:02.6]} 54... Nxf4 {[%clk 0:00:30]} 55.
Kb2 {[%clk 0:00:02]} 55... Nd5 {[%clk 0:00:28.6]} 56. Ka3 {[%clk 0:00:02]} 56...
Ne3 {[%clk 0:00:28]} 0-1

[Event "*** Titled Tuesday Blitz"]
[Site "Chess.com"]
[Date "2021.03.09"]
[Round "8"]
[White "VitaliyBernadskiy"]
[Black "lachesisQ"]
[Result "0-1"]
[WhiteElo "2774"]
[BlackElo "3095"]
[TimeControl "180+1"]
[EndTime "11:32:10 PST"]
[Termination "lachesisQ won by resignation"]

1. d4 {[%clk 0:03:00.9]} 1... Nf6 {[%clk 0:02:58.9]} 2. c4 {[%clk 0:03:01.4]}
2... g6 {[%clk 0:02:59.5]} 3. Nc3 {[%clk 0:03:02]} 3... d5 {[%clk 0:03:00.1]} 4.
Nf3 {[%clk 0:03:01.8]} 4... Bg7 {[%clk 0:02:59.6]} 5. cxd5 {[%clk 0:02:57.8]}
5... Nxd5 {[%clk 0:03:00.5]} 6. Bg5 {[%clk 0:02:56.7]} 6... Nxc3 {[%clk
0:02:54.1]} 7. bxc3 {[%clk 0:02:56.6]} 7... c5 {[%clk 0:02:54.7]} 8. e3 {[%clk
0:02:56.4]} 8... Nc6 {[%clk 0:02:54.3]} 9. Bb5 {[%clk 0:02:55.6]} 9... O-O
{[%clk 0:02:53.9]} 10. O-O {[%clk 0:02:55]} 10... Bd7 {[%clk 0:02:52.3]} 11. Qe2
{[%clk 0:02:47.3]} 11... Rc8 {[%clk 0:02:51.8]} 12. Rab1 {[%clk 0:02:34.4]}
12... Na5 {[%clk 0:02:50.6]} 13. Rfd1 {[%clk 0:02:31.6]} 13... cxd4 {[%clk
0:02:48.1]} 14. Nxd4 {[%clk 0:02:20.5]} 14... Bxb5 {[%clk 0:02:33]} 15. Nxb5
{[%clk 0:02:17.5]} 15... Qe8 {[%clk 0:02:33.5]} 16. Nxa7 {[%clk 0:02:10.9]}
16... Rxc3 {[%clk 0:02:33.7]} 17. Qb5 {[%clk 0:02:05.5]} 17... Ra3 {[%clk
0:01:56.5]} 18. Qb4 {[%clk 0:01:26]} 18... Ra4 {[%clk 0:01:56.1]} 19. Qxe7
{[%clk 0:01:11.9]} 19... Qxe7 {[%clk 0:01:56.1]} 20. Bxe7 {[%clk 0:01:10.4]}
20... Re8 {[%clk 0:01:56.4]} 21. Bb4 {[%clk 0:01:03.7]} 21... Nc4 {[%clk
0:01:53]} 22. Nb5 {[%clk 0:00:47]} 22... Nb2 {[%clk 0:01:52.9]} 23. Nc7 {[%clk
0:00:36.6]} 23... Rb8 {[%clk 0:01:44.7]} 24. a3 {[%clk 0:00:21.8]} 24... Nxd1
{[%clk 0:01:43.8]} 25. Rxd1 {[%clk 0:00:22.7]} 25... Bf8 {[%clk 0:01:43.4]} 26.
Bxf8 {[%clk 0:00:11.5]} 26... Kxf8 {[%clk 0:01:44.3]} 27. Nb5 {[%clk 0:00:11.9]}
27... Rc8 {[%clk 0:01:38.9]} 28. g3 {[%clk 0:00:11.3]} 28... Rc5 {[%clk
0:01:37.4]} 29. Rb1 {[%clk 0:00:10.3]} 29... Rac4 {[%clk 0:01:31.6]} 30. Kg2
{[%clk 0:00:09.2]} 30... Rc1 {[%clk 0:01:27.2]} 31. Rb3 {[%clk 0:00:07.6]} 31...
Ra1 {[%clk 0:01:24.2]} 32. Nd4 {[%clk 0:00:07.2]} 32... Rc7 {[%clk 0:01:23.2]}
33. h4 {[%clk 0:00:06.4]} 33... h5 {[%clk 0:01:23]} 34. Nf3 {[%clk 0:00:06.3]}
34... Ra2 {[%clk 0:01:21.8]} 35. Nd4 {[%clk 0:00:05.5]} 35... Kg7 {[%clk
0:01:21.7]} 36. Kf3 {[%clk 0:00:05.3]} 36... Rd7 {[%clk 0:01:18.5]} 37. Kg2
{[%clk 0:00:05.2]} 37... Re7 {[%clk 0:01:16.2]} 38. Kf3 {[%clk 0:00:05.3]} 38...
Rc7 {[%clk 0:01:16.2]} 39. Kg2 {[%clk 0:00:04.9]} 39... Rd7 {[%clk 0:01:16.6]}
40. Kf3 {[%clk 0:00:04.7]} 40... Rd6 {[%clk 0:01:17.1]} 41. Kg2 {[%clk
0:00:04.8]} 41... Rf6 {[%clk 0:01:17.1]} 42. Nf3 {[%clk 0:00:05.2]} 42... b6
{[%clk 0:01:16.7]} 43. Rc3 {[%clk 0:00:04.9]} 43... Rb2 {[%clk 0:01:13.6]} 44.
Rd3 {[%clk 0:00:04.8]} 44... Rc6 {[%clk 0:01:12.5]} 45. Nd4 {[%clk 0:00:04.1]}
45... Rc5 {[%clk 0:01:12.6]} 46. Kf3 {[%clk 0:00:03]} 46... Ra5 {[%clk
0:01:10.9]} 47. Ne2 {[%clk 0:00:02.6]} 47... Rc5 {[%clk 0:01:04.6]} 48. Nf4
{[%clk 0:00:02.3]} 48... Rcc2 {[%clk 0:01:04.3]} 49. Rd7 {[%clk 0:00:02.4]}
49... Rxf2+ {[%clk 0:01:04.4]} 50. Ke4 {[%clk 0:00:03.3]} 50... Ra2 {[%clk
0:00:59]} 51. Ne6+ {[%clk 0:00:03.4]} 51... Kg8 {[%clk 0:00:56.6]} 52. Rd8+
{[%clk 0:00:03.4]} 52... Kh7 {[%clk 0:00:57]} 53. Ng5+ {[%clk 0:00:03.7]} 53...
Kg7 {[%clk 0:00:57.5]} 54. Rd3 {[%clk 0:00:03.4]} 54... Rf5 {[%clk 0:00:52.8]}
55. Rb3 {[%clk 0:00:03.3]} 55... b5 {[%clk 0:00:52.7]} 56. Rc3 {[%clk
0:00:03.8]} 56... Rg2 {[%clk 0:00:52.3]} 57. Rc7 {[%clk 0:00:03.7]} 57... Rxg3
{[%clk 0:00:52]} 58. Ne6+ {[%clk 0:00:03.9]} 58... Kg8 {[%clk 0:00:51.7]} 59.
Rc8+ {[%clk 0:00:03.9]} 59... Kh7 {[%clk 0:00:52]} 60. Nd4 {[%clk 0:00:02.6]}
60... Rg4+ {[%clk 0:00:49.9]} 61. Kd3 {[%clk 0:00:02.9]} 61... Re5 {[%clk
0:00:50.1]} 62. Rc7 {[%clk 0:00:02.4]} 62... Kg8 {[%clk 0:00:49.5]} 63. Nc6
{[%clk 0:00:02.3]} 63... Re6 {[%clk 0:00:46.9]} 64. Nd8 {[%clk 0:00:02.1]} 64...
Rd6+ {[%clk 0:00:46.5]} 0-1